bitfinex/quotes_BTCUSD_20220226
["timestamp","ask_amount","ask_price","bid_price","bid_amount"]
[1645887785356,0.06512869,39271.0,39262.0,0.1758235]
[1645887785357,0.06480714,39271.0,39262.0,0.1758235]
[1645887785560,0.06480714,39271.0,39266.0,0.00032159]
[1645887785757,0.06512869,39271.0,39266.0,0.00032159]
[1645887785957,0.0243456,39271.0,39267.0,0.378452]
[1645887786657,0.02402405,39271.0,39267.0,0.378452]
[1645887787058,0.0243456,39271.0,39267.0,0.379452]
[1645887787459,0.0243456,39271.0,39267.0,0.001]
[1645887787915,0.02402405,39271.0,39267.0,0.001]
[1645887788123,0.02434724,39271.0,39267.0,0.001]
[1645887788315,0.02434724,39271.0,39266.0,0.00032323]
[1645887789115,0.02402405,39271.0,39266.0,0.001]
[1645887789316,0.02434724,39271.0,39266.0,0.00132323]
[1645887790123,0.02434724,39271.0,39266.0,0.001]
[1645887790317,0.02402405,39271.0,39258.0,0.4697]
[1645887790518,0.02434724,39271.0,39266.0,0.00032323]
[1645887790921,0.04470724,39271.0,39266.0,0.00032323]
[1645887791118,0.04770724,39271.0,39266.0,0.00032323]
[1645887791468,0.03718405,39271.0,39258.0,0.74923019]
[1645887791667,0.03750713,39271.0,39266.0,0.00032312]
[1645887792367,0.02434713,39271.0,39266.0,0.00032312]
[1645887793271,0.02634713,39271.0,39266.0,0.00032312]
[1645887793768,0.02602405,39271.0,39260.0,0.3]
[1645887793967,0.02602405,39271.0,39266.0,0.00032312]
[1645887794167,0.02634713,39271.0,39266.0,0.00032312]
[1645887794369,0.08806513,39271.0,39266.0,0.00032312]
[1645887794768,0.09826513,39271.0,39266.0,0.00032312]
[1645887794969,0.09794205,39271.0,39260.0,0.35]
[1645887795216,0.08806514,39271.0,39266.0,0.00032313]
[1645887795416,0.02434714,39271.0,39266.0,0.00032313]
[1645887796216,0.02402405,39271.0,39260.0,0.35]
[1645887796416,0.02434714,39271.0,39266.0,0.00032313]
[1645887797017,0.02434714,39271.0,39266.0,0.00023785]
[1645887797216,0.02634714,39271.0,39266.0,0.00023785]
[1645887797416,0.02602405,39271.0,39259.0,0.35]
[1645887797617,0.02602405,39271.0,39260.0,0.378452]
[1645887797916,0.02602405,39271.0,39261.0,0.3]
[1645887798316,0.02402405,39271.0,39261.0,0.3]
[1645887798968,0.03454814,39271.0,39264.0,0.00032414]
[1645887799168,0.02434814,39271.0,39264.0,0.00032414]
[1645887799868,0.02434814,39271.0,39261.0,0.001]
[1645887799869,0.02402405,39271.0,39261.0,0.001]
[1645887800071,0.02434814,39271.0,39265.0,0.00032414]
[1645887801077,0.063719,39269.0,39259.0,0.3]
[1645887801272,0.063719,39269.0,39265.0,0.00032414]
[1645887801872,0.06117191,39269.0,39265.0,0.00032414]
[1645887802271,0.06117191,39269.0,39260.0,0.378452]
[1645887802472,0.06371638,39266.0,39265.0,0.00032341]
[1645887803217,0.06571638,39266.0,39265.0,0.00032341]
[1645887803513,0.06571638,39266.0,39259.0,0.3]
[1645887803717,0.06571638,39266.0,39264.0,0.00032342]
[1645887804314,0.06371638,39266.0,39264.0,0.00032342]
[1645887804715,0.06371638,39266.0,39259.0,0.3]
[1645887804917,0.06371638,39266.0,39263.0,0.00032342]
[1645887805216,0.06571638,39266.0,39263.0,0.00032342]
[1645887805816,0.06571638,39266.0,39259.0,0.3]
[1645887806017,0.06571638,39266.0,39263.0,0.00032387]
[1645887806566,0.06371638,39266.0,39263.0,0.00032387]
[1645887806968,0.06371638,39266.0,39259.0,0.3]
[1645887807168,0.06471638,39266.0,39263.0,0.00032387]
[1645887807368,0.06471638,39266.0,39264.0,0.378452]
[1645887807567,0.06471638,39266.0,39263.0,0.00032387]
[1645887808169,0.001,39266.0,39264.0,0.378452]
[1645887808369,0.06371123,39270.0,39263.0,0.00032387]
[1645887809170,0.06571123,39270.0,39263.0,0.00032387]
[1645887809370,0.06571123,39270.0,39259.0,0.3]
[1645887809571,0.08611123,39270.0,39265.0,0.0003238]
[1645887810413,0.08411123,39270.0,39265.0,0.0003238]
[1645887810614,0.06371123,39270.0,39259.0,0.3]
[1645887810816,0.06371123,39270.0,39265.0,0.0003238]
[1645887811912,0.06371123,39270.0,39259.0,0.3]
[1645887812115,0.06371123,39270.0,39265.0,0.0003238]
[1645887813113,0.06371123,39270.0,39259.0,0.3]
[1645887813314,0.06371123,39270.0,39265.0,0.00032381]
[1645887813515,0.07391123,39270.0,39265.0,0.00032381]
[1645887813971,0.06371123,39270.0,39265.0,0.00032381]
[1645887814175,0.06371123,39270.0,39259.0,1.0788]
[1645887814376,0.06371123,39270.0,39265.0,0.00032381]
[1645887814572,0.05871123,39270.0,39265.0,0.00032381]
[1645887815374,0.05871123,39270.0,39259.0,0.301]
[1645887815574,0.05871123,39270.0,39265.0,0.00032381]
[1645887815775,0.06071123,39270.0,39265.0,0.00032381]
[1645887816573,0.06071123,39270.0,39259.0,0.301]
[1645887816779,0.06071123,39270.0,39260.0,0.378452]
[1645887816975,0.06071123,39270.0,39265.0,0.00032381]
[1645887817375,0.05871123,39270.0,39265.0,0.00032381]
[1645887817576,0.07911123,39270.0,39265.0,0.00032381]
[1645887817812,0.05871123,39270.0,39265.0,0.00032381]
[1645887818111,0.02696093,39270.0,39259.0,0.378452]
[1645887818311,0.02696093,39270.0,39265.0,0.00032381]
[1645887819114,0.02196093,39270.0,39267.0,0.00010616]
[1645887820114,0.02196093,39270.0,39257.0,0.378452]
[1645887820316,0.02196093,39270.0,39258.0,1.0788]
[1645887820515,0.02196093,39270.0,39259.0,0.378452]
[1645887820715,0.02196093,39270.0,39260.0,0.3]
[1645887820915,0.02196093,39270.0,39261.0,0.378452]
[1645887821216,0.02196093,39270.0,39263.0,0.17245029]
[1645887821468,0.04236093,39270.0,39263.0,0.17245029]
[1645887821663,0.03216093,39270.0,39263.0,0.17277435]
[1645887821870,0.03248493,39270.0,39263.0,0.17277435]
[1645887822663,0.02196093,39270.0,39263.0,0.17245029]
[1645887822862,0.02196093,39270.0,39263.0,0.17113953]
[1645887823063,0.02228494,39270.0,39263.0,0.17146359]
[1645887823463,0.02228494,39270.0,39264.0,0.378452]
[1645887823666,0.02228494,39270.0,39263.0,0.17246359]
[1645887823866,0.02196093,39270.0,39263.0,0.17213953]
[1645887824066,0.02196093,39270.0,39263.0,0.00132406]
[1645887824265,0.02228494,39270.0,39263.0,0.00132406]
[1645887824865,0.02228494,39270.0,39263.0,0.00032406]
[1645887825065,0.02196093,39270.0,39262.0,0.18317172]
[1645887825328,0.02196093,39270.0,39263.0,0.37877581]
[1645887825329,0.03248469,39270.0,39263.0,0.37877581]
[1645887825525,0.03248469,39270.0,39263.0,0.00032381]
[1645887825723,0.02228469,39270.0,39263.0,0.00032381]
[1645887826324,0.02196093,39270.0,39262.0,0.18317172]
[1645887826525,0.02196093,39270.0,39263.0,0.00032381]
[1645887826725,0.02228469,39270.0,39263.0,0.00032381]
[1645887827625,0.02196093,39270.0,39261.0,0.378452]
[1645887827826,0.02228469,39270.0,39263.0,0.00032381]
[1645887828727,0.02196093,39270.0,39259.0,1.1959]
[1645887828965,0.0222847,39270.0,39263.0,0.00032383]
[1645887829966,0.02196093,39270.0,39261.0,0.3]
[1645887830166,0.0222847,39270.0,39263.0,0.00032383]
[1645887831168,0.02196093,39270.0,39259.0,1.1959]
[1645887831371,0.0222847,39270.0,39263.0,0.00032383]
[1645887831970,0.0221738,39270.0,39263.0,0.00032383]
[1645887832371,0.02185003,39270.0,39259.0,1.1959]
[1645887832571,0.0221738,39270.0,39263.0,0.00032383]
[1645887833228,0.0221738,39270.0,39261.0,0.29532383]
[1645887833523,0.0221738,39270.0,39263.0,0.001]
[1645887833524,0.02185003,39270.0,39263.0,0.001]
[1645887833723,0.02185003,39270.0,39263.0,0.301]
[1645887833924,0.02185003,39270.0,39263.0,0.001]
[1645887834827,0.02185003,39270.0,39260.0,1.0788]
[1645887835027,0.02185003,39270.0,39261.0,0.378452]
[1645887835224,0.02185003,39270.0,39262.0,0.3]
[1645887835423,0.02185003,39270.0,39264.0,0.17365657]
[1645887835624,0.001,39270.0,39264.0,0.17365657]
[1645887835824,0.001,39270.0,39265.0,0.3]
[1645887836029,0.001,39270.0,39266.0,1.157252]
[1645887836226,0.001,39270.0,39268.0,0.7788]
[1645887836475,0.001,39270.0,39269.0,1.157252]
[1645887836679,0.001,39270.0,39269.0,1.257252]
[1645887836875,0.0033,39272.0,39269.0,1.257252]
[1645887837074,0.0033,39272.0,39270.0,0.1742915]
[1645887837274,0.0033,39272.0,39271.0,0.378452]
[1645887837673,0.0033,39272.0,39271.0,1.157252]
[1645887838275,0.0033,39272.0,39271.0,0.378452]
[1645887838874,0.0033,39272.0,39271.0,0.678452]
[1645887839074,0.0033,39272.0,39271.0,1.457252]
[1645887839275,0.0033,39272.0,39271.0,0.678452]
[1645887840083,0.0033,39272.0,39271.0,1.457252]
[1645887840320,0.0033,39272.0,39271.0,1.482782]
[1645887840518,0.0033,39272.0,39271.0,1.457252]
[1645887840724,0.00295804,39272.0,39271.0,1.457252]
[1645887841118,0.00295804,39272.0,39271.0,1.482782]
[1645887841522,0.00295804,39272.0,39271.0,1.483782]
[1645887842820,0.00295804,39272.0,39271.0,1.482782]
[1645887843822,0.00295804,39272.0,39271.0,1.157252]
[1645887844070,0.00295804,39272.0,39271.0,1.457252]
[1645887844273,0.00295804,39272.0,39271.0,1.157252]
[1645887844871,0.00295804,39272.0,39271.0,0.378452]
[1645887845278,0.00295804,39272.0,39265.0,0.1224]
[1645887846271,0.00142504,39273.0,39265.0,0.1224]
[1645887846272,0.00032504,39273.0,39265.0,0.1224]
[1645887846473,0.07325408,39274.0,39265.0,0.1224]
[1645887846673,0.063714,39273.0,39265.0,0.1224]
[1645887846873,0.06371422,39270.0,39262.0,1.24161052]
[1645887847072,0.06371422,39270.0,39262.0,0.22471052]
[1645887847273,0.06371422,39270.0,39263.0,0.378452]
[1645887848122,0.06371422,39270.0,39265.0,0.00019797]
[1645887848923,0.06371422,39270.0,39266.0,0.378452]
[1645887849121,0.06371422,39270.0,39262.0,0.52471052]
[1645887849322,0.06371422,39270.0,39265.0,0.00019797]
[1645887850321,0.06371422,39270.0,39261.0,0.3882]
[1645887850527,0.06371422,39270.0,39265.0,0.00034592]
[1645887851570,0.06371422,39270.0,39265.0,0.001]
[1645887852171,0.06371422,39270.0,39265.0,0.00058077]
[1645887852772,0.06371422,39270.0,39262.0,0.23366493]
[1645887852773,0.06371422,39270.0,39262.0,1.01246493]
[1645887852973,0.06371422,39270.0,39265.0,0.00034564]
[1645887853576,0.06371422,39270.0,39265.0,0.00134564]
[1645887853975,0.06371422,39270.0,39265.0,0.001]
[1645887854175,0.06371422,39270.0,39265.0,0.00134564]
[1645887854777,0.06371422,39270.0,39265.0,0.00034564]
[1645887855222,0.12743222,39270.0,39261.0,0.3872]
[1645887855421,0.12743222,39270.0,39262.0,0.378452]
[1645887855923,0.12743222,39270.0,39262.0,0.678452]
[1645887856921,0.12743222,39270.0,39261.0,0.3872]
[1645887857121,0.12743222,39270.0,39262.0,0.678452]
[1645887857320,0.12743222,39270.0,39262.0,0.3]
[1645887857520,0.12743222,39270.0,39263.0,0.378452]
[1645887857721,0.06371422,39270.0,39262.0,0.3]
[1645887858023,0.06371422,39270.0,39263.0,0.378452]
[1645887858222,0.06371422,39270.0,39264.0,0.3]
[1645887858974,0.06371422,39270.0,39265.0,0.00034547]
[1645887859975,0.06371422,39270.0,39262.0,0.3]
[1645887860176,0.06371422,39270.0,39265.0,0.00034547]
[1645887861183,0.06371422,39270.0,39261.0,0.3872]
[1645887861382,0.06371422,39270.0,39265.0,0.00034547]
[1645887862280,0.06371422,39270.0,39261.0,0.3872]
[1645887862478,0.06371422,39270.0,39262.0,0.378452]
[1645887862717,0.06371422,39270.0,39265.0,0.00019776]
[1645887863517,0.06371422,39270.0,39261.0,0.3872]
[1645887863722,0.06371422,39270.0,39262.0,0.378452]
[1645887863919,0.06371422,39270.0,39265.0,0.00034522]
[1645887864722,0.06371422,39270.0,39261.0,0.3872]
[1645887864921,0.06371422,39270.0,39265.0,0.00034522]
[1645887865924,0.06371422,39270.0,39262.0,0.3]
[1645887865925,0.06371422,39270.0,39261.0,0.3872]
[1645887866329,0.06371422,39270.0,39265.0,0.00034522]
[1645887867173,0.06371422,39270.0,39261.0,0.3872]
[1645887867375,0.06371422,39270.0,39265.0,0.00034522]
[1645887868375,0.06371422,39270.0,39262.0,0.3]
[1645887868574,0.06371422,39270.0,39265.0,0.00034522]
[1645887869675,0.06371422,39270.0,39262.0,0.3]
[1645887869874,0.06371422,39270.0,39265.0,0.00034522]
[1645887872128,0.06371422,39270.0,39262.0,0.3]
[1645887872329,0.06371422,39270.0,39265.0,0.00034522]
[1645887873127,0.06371422,39270.0,39262.0,0.3]
[1645887873328,0.06371422,39270.0,39263.0,0.378452]
[1645887873528,0.06371422,39270.0,39265.0,0.00034522]
[1645887873728,0.06371422,39270.0,39265.0,0.00134522]
[1645887873977,0.06371422,39270.0,39266.0,0.378452]
[1645887874375,0.06371422,39270.0,39266.0,0.37835422]
[1645887874575,0.06371422,39270.0,39265.0,0.00132609]
[1645887874778,0.06371422,39270.0,39266.0,0.377617]
[1645887874977,0.06371422,39270.0,39265.0,0.00132609]
[1645887875377,0.06371422,39270.0,39265.0,0.00032609]
[1645887875576,0.06371422,39270.0,39261.0,0.3872]
[1645887875776,0.06371422,39270.0,39265.0,0.00032609]
[1645887876781,0.06371422,39270.0,39262.0,0.3]
[1645887877077,0.06371422,39270.0,39265.0,0.00032609]
[1645887878020,0.06371422,39270.0,39261.0,0.3872]
[1645887878220,0.06371422,39270.0,39265.0,0.0003222]
[1645887879223,0.06371422,39270.0,39262.0,0.3]
[1645887879424,0.06371422,39270.0,39261.0,0.3872]
[1645887879425,0.06371422,39270.0,39263.0,0.377617]
[1645887879622,0.06371422,39270.0,39264.0,0.3]
[1645887880025,0.06371422,39270.0,39262.0,0.3]
[1645887880225,0.06371422,39270.0,39263.0,0.377617]
[1645887880423,0.19584846,39274.0,39265.0,0.377617]
[1645887880624,0.00954308,39274.0,39266.0,1.0788]
[1645887880825,0.00954308,39274.0,39269.0,1.156417]
[1645887881025,0.00954308,39274.0,39271.0,0.377617]
[1645887882080,0.0014451,39275.0,39271.0,0.377617]
[1645887882874,0.0011,39275.0,39271.0,0.377617]
[1645887883074,0.0014451,39275.0,39271.0,0.377617]
[1645887884073,0.0011,39275.0,39271.0,0.377617]
[1645887884275,0.0014451,39275.0,39271.0,0.377617]
[1645887885224,0.0011,39275.0,39271.0,0.377617]
[1645887885524,0.0014451,39275.0,39271.0,0.377617]
[1645887885725,0.0014451,39275.0,39265.0,0.00034518]
[1645887885726,0.0014451,39275.0,39266.0,0.001]
[1645887885931,0.0014451,39275.0,39267.0,0.377617]
[1645887886123,0.0014451,39275.0,39266.0,0.001]
[1645887886325,0.0014451,39275.0,39267.0,0.377617]
[1645887886525,0.0011,39275.0,39267.0,0.377617]
[1645887886724,0.00144509,39275.0,39267.0,0.377617]
[1645887886926,0.00144509,39275.0,39267.0,0.677617]
[1645887887336,0.00144509,39275.0,39273.0,0.377617]
[1645887887629,0.0011,39275.0,39273.0,0.377617]
[1645887891677,0.0011,39275.0,39273.0,0.378617]
[1645887892922,0.0011,39275.0,39273.0,0.377617]
[1645887894122,0.0011,39275.0,39274.0,0.3]
[1645887894323,0.0011,39275.0,39274.0,0.677617]
[1645887895322,0.0011,39275.0,39274.0,1.456417]
[1645887895722,0.0011,39275.0,39274.0,1.458417]
[1645887895923,0.0011,39275.0,39274.0,0.679617]
[1645887896675,0.0011,39275.0,39274.0,0.67953607]
[1645887896875,0.0011,39275.0,39274.0,0.67753607]
[1645887897681,0.0011,39275.0,39274.0,0.67953607]
[1645887898880,0.0011,39275.0,39274.0,0.379617]
[1645887899080,0.0011,39275.0,39274.0,0.377617]
[1645887899282,0.0011,39275.0,39274.0,1.156417]
[1645887899580,0.0011,39275.0,39274.0,1.206417]
[1645887899781,0.0011,39275.0,39274.0,1.207417]
[1645887900924,0.0011,39275.0,39274.0,1.206417]
[1645887901921,0.0011,39275.0,39274.0,1.231947]
[1645887902727,0.0011,39275.0,39274.0,1.206417]
[1645887905868,0.0006,39275.0,39274.0,1.210417]
[1645887906869,0.0006,39275.0,39274.0,1.235947]
[1645887907069,0.0006,39275.0,39274.0,1.231947]
[1645887907569,0.0006,39275.0,39274.0,1.282947]
[1645887907827,0.0006,39275.0,39274.0,1.286947]
[1645887909026,0.00143273,39278.0,39276.0,0.80433]
[1645887909229,0.00143273,39278.0,39277.0,1.531947]
[1645887909528,0.00143273,39278.0,39277.0,1.582947]
[1645887909727,0.00143273,39278.0,39277.0,1.584947]
[1645887910332,0.00102494,39284.0,39279.0,0.80433]
[1645887910534,0.00102494,39284.0,39281.0,0.7788]
[1645887910729,0.00102494,39284.0,39283.0,0.7788]
[1645887910930,0.00102494,39284.0,39283.0,1.456417]
[1645887911576,0.00102494,39284.0,39283.0,1.481947]
[1645887911778,4.94e-06,39284.0,39283.0,1.532947]
[1645887912179,4.94e-06,39284.0,39283.0,1.53252796]
[1645887913181,5.835e-05,39285.0,39284.0,1.15599796]
[1645887913377,5.835e-05,39285.0,39284.0,1.55699796]
[1645887913778,5.835e-05,39285.0,39284.0,1.55999796]
[1645887914179,0.00285625,39288.0,39286.0,0.80391096]
[1645887914378,0.00285625,39288.0,39286.0,1.53252796]
[1645887914582,0.00285625,39288.0,39286.0,1.63252796]
[1645887914780,0.001,39290.0,39289.0,1.2]
[1645887914981,0.001,39290.0,39289.0,2.43252796]
[1645887915224,0.001,39290.0,39289.0,2.66257282]
[1645887915826,0.001,39290.0,39289.0,2.66557282]
[1645887916233,0.00371726,39300.0,39289.0,2.66557282]
[1645887916234,0.0043,39307.0,39291.0,1.97838096]
[1645887916427,0.0043,39310.0,39298.0,1.41628096]
[1645887916627,0.0043,39310.0,39307.0,0.77838096]
[1645887916826,0.0043,39310.0,39309.0,1.15599796]
[1645887917023,0.0043,39310.0,39309.0,1.30706796]
[1645887917425,0.0021,39312.0,39310.0,1.277617]
[1645887917625,0.0021,39312.0,39311.0,1.23252796]
[1645887917824,0.0021,39312.0,39311.0,1.20699796]
[1645887918027,0.0021,39312.0,39311.0,0.428617]
[1645887918824,0.0021,39312.0,39311.0,0.377617]
[1645887919095,0.0021,39312.0,39307.0,0.377617]
[1645887919691,0.0636433,39311.0,39307.0,0.377617]
[1645887919890,0.0636433,39311.0,39307.0,0.379617]
[1645887920090,0.0636433,39311.0,39309.0,0.377617]
[1645887920294,0.08951862,39311.0,39307.0,0.002]
[1645887920893,0.32553,39310.0,39307.0,0.002]
[1645887921096,0.32553,39310.0,39300.0,0.223674]
[1645887921293,0.32553,39310.0,39301.0,0.377617]
[1645887921694,0.12553,39309.0,39295.0,0.1246]
[1645887921896,0.06365411,39305.0,39295.0,0.1276]
[1645887922196,0.02553,39302.0,39295.0,0.003]
[1645887922593,0.07653,39302.0,39295.0,0.003]
[1645887922821,0.06367,39300.0,39295.0,0.003]
[1645887923221,0.06367,39300.0,39290.0,0.56666783]
[1645887923419,0.0892,39300.0,39290.0,0.56666783]
[1645887923623,0.0892,39300.0,39290.0,0.17166783]
[1645887923819,0.0892,39300.0,39290.0,0.003]
[1645887924220,0.1,39297.0,39290.0,0.003]
[1645887924621,0.163673,39297.0,39290.0,0.003]
[1645887924821,0.189203,39297.0,39290.0,0.003]
[1645887925020,0.189203,39297.0,39285.0,0.05]
[1645887925021,0.1,39295.0,39285.0,0.05]
[1645887925220,0.12587517,39295.0,39284.0,0.2118686]
[1645887925621,0.02587517,39295.0,39284.0,0.2118686]
[1645887925821,0.00034517,39295.0,39284.0,0.2118686]
[1645887926223,0.19101914,39296.0,39285.0,0.7788]
[1645887926473,0.19101914,39296.0,39286.0,0.377617]
[1645887926474,0.00034519,39291.0,39286.0,0.377617]
[1645887926678,0.01534519,39291.0,39286.0,0.377617]
[1645887926874,0.01534519,39291.0,39290.0,0.17397225]
[1645887927073,0.01534519,39291.0,39290.0,0.55158925]
[1645887927472,0.015,39291.0,39290.0,0.55158925]
[1645887927873,0.015,39291.0,39290.0,1.33038925]
[1645887929476,0.015,39291.0,39281.0,0.01017]
[1645887929678,0.051,39290.0,39280.0,0.05]
[1645887929880,0.051,39290.0,39278.0,0.7326]
[1645887930225,0.3,39289.0,39278.0,0.4826]
[1645887930422,0.051,39289.0,39282.0,0.17467967]
[1645887931221,0.00034521,39287.0,39282.0,0.17467967]
[1645887931425,0.00034521,39287.0,39283.0,0.377617]
[1645887931623,0.00034521,39287.0,39278.0,0.4826]
[1645887931824,0.00034521,39287.0,39279.0,0.377617]
[1645887932223,0.36368267,39288.0,39279.0,0.377617]
[1645887932438,0.00032088,39287.0,39278.0,0.4826]
[1645887933025,0.00032088,39287.0,39278.0,0.3826]
[1645887933426,0.38921267,39288.0,39278.0,0.3826]
[1645887933627,0.00030524,39287.0,39278.0,0.3826]
[1645887933826,0.00030524,39287.0,39278.0,0.3856]
[1645887934476,0.00030524,39287.0,39278.0,0.3826]
[1645887934676,0.38921267,39288.0,39278.0,0.3826]
[1645887934877,0.06368267,39288.0,39279.0,0.377617]
[1645887935077,0.00030524,39287.0,39280.0,0.377617]
[1645887935278,0.00030524,39287.0,39278.0,0.3826]
[1645887935876,0.32553,39288.0,39278.0,0.3826]
[1645887936078,0.00032957,39287.0,39278.0,0.3826]
[1645887936682,0.02553,39284.0,39276.0,0.19558515]
[1645887936882,0.02553,39284.0,39272.0,0.0003297]
[1645887936883,0.02553,39282.0,39272.0,0.0003297]
[1645887937077,0.37653,39282.0,39268.0,0.1203]
[1645887937277,0.07653,39282.0,39272.0,0.00034533]
[1645887937479,0.07653,39282.0,39273.0,0.377617]
[1645887937719,0.27633,39282.0,39272.0,0.00034533]
[1645887937920,0.37653,39282.0,39272.0,0.21723695]
[1645887938123,0.37653,39282.0,39273.0,0.377617]
[1645887938320,0.37653,39282.0,39272.0,0.21689162]
[1645887938321,0.07653,39282.0,39274.0,0.377617]
[1645887938520,0.07653,39282.0,39275.0,0.377617]
[1645887938521,0.06369595,39279.0,39275.0,0.377617]
[1645887938721,0.06369595,39279.0,39273.0,0.377617]
[1645887939521,0.06319595,39279.0,39273.0,0.379617]
[1645887939922,0.0563724,39279.0,39273.0,0.379617]
[1645887940722,0.051,39282.0,39278.0,0.2156708]
[1645887940922,0.051,39282.0,39279.0,0.377617]
[1645887941122,0.02553,39286.0,39278.0,0.2156708]
[1645887941573,0.02553,39286.0,39279.0,0.001]
[1645887941976,0.08921543,39286.0,39279.0,0.001]
[1645887942172,0.08421543,39286.0,39279.0,0.001]
[1645887942373,0.02553,39284.0,39279.0,0.001]
[1645887942572,0.02553,39282.0,39279.0,0.001]
[1645887942773,0.02553,39282.0,39272.0,0.00034533]
[1645887943072,0.02553,39282.0,39273.0,0.377617]
[1645887943274,0.52533,39282.0,39272.0,0.00034561]
[1645887943474,0.06369369,39281.0,39273.0,0.377617]
[1645887943673,0.32553,39280.0,39272.0,0.00034561]
[1645887943874,0.389233,39280.0,39272.0,0.00034561]
[1645887944076,0.35872,39280.0,39272.0,0.00034561]
[1645887944275,0.35872,39280.0,39270.0,0.04]
[1645887944480,0.07653,39279.0,39272.0,0.00034559]
[1645887945337,0.3,39278.0,39272.0,0.00034559]
[1645887945536,0.07653,39278.0,39272.0,0.00034559]
[1645887945738,0.051,39278.0,39272.0,0.00034559]
[1645887946135,0.351,39278.0,39272.0,0.00034559]
[1645887946336,0.3,39277.0,39272.0,0.00034559]
[1645887946539,0.38923074,39277.0,39272.0,0.00034559]
[1645887946738,0.02553,39275.0,39272.0,0.00034559]
[1645887946935,0.07653,39274.0,39272.0,0.00034559]
[1645887947536,0.07653,39274.0,39272.0,0.00134559]
[1645887947935,0.07653,39274.0,39272.0,0.001]
[1645887948138,0.37653,39274.0,39272.0,0.001]
[1645887948538,0.07653,39274.0,39272.0,0.001]
[1645887948735,0.07653,39274.0,39271.0,0.00032306]
[1645887948972,0.07653,39274.0,39270.0,0.04]
[1645887949176,0.07653,39274.0,39271.0,0.00032307]
[1645887950176,0.07653,39274.0,39270.0,0.04]
[1645887950376,0.07653,39274.0,39271.0,0.00032307]
[1645887950979,0.32553,39273.0,39271.0,0.00032307]
[1645887951179,0.02553,39270.0,39253.0,0.7788]
[1645887951383,0.17653,39269.0,39252.0,0.3516]
[1645887951578,0.17653,39269.0,39252.0,0.1134]
[1645887951579,0.02553,39267.0,39252.0,0.1134]
[1645887951778,0.02553,39265.0,39252.0,0.1134]
[1645887951978,0.02553,39265.0,39254.0,0.18545618]
[1645887951979,0.051,39264.0,39254.0,0.18545618]
[1645887952179,0.07653,39264.0,39254.0,0.18545618]
[1645887952582,0.08926121,39259.0,39250.0,1.0]
[1645887952829,0.051,39258.0,39250.0,1.0]
[1645887953230,0.02553,39257.0,39250.0,1.0]
[1645887953529,0.07653,39256.0,39250.0,1.0]
[1645887953729,0.001,39258.0,39256.0,0.20406]
[1645887953929,0.051,39257.0,39256.0,0.20406]
[1645887954431,0.2508,39257.0,39256.0,0.20406]
[1645887954629,0.24221765,39257.0,39256.0,0.20406]
[1645887954829,0.11473903,39257.0,39256.0,0.20406]
[1645887955427,0.11573903,39257.0,39256.0,0.20406]
[1645887956033,0.41573903,39257.0,39256.0,0.20406]
[1645887956232,0.51573903,39257.0,39256.0,0.20406]
[1645887956772,0.41473903,39257.0,39256.0,0.20406]
[1645887957576,0.61453903,39257.0,39256.0,0.20406]
[1645887957973,0.31453903,39257.0,39256.0,0.20406]
[1645887958374,0.11473903,39257.0,39256.0,0.20406]
[1645887959377,0.51473903,39257.0,39256.0,0.03413821]
[1645887959580,0.73974903,39257.0,39250.0,1.49526842]
[1645887959779,0.06374835,39254.0,39250.0,1.49526842]
[1645887959978,0.051,39253.0,39250.0,1.49526842]
[1645887960278,0.051,39253.0,39251.0,0.377617]
[1645887960467,0.051,39253.0,39250.0,1.49526842]
[1645887960670,0.0426768,39253.0,39251.0,0.377617]
[1645887960871,0.0426768,39253.0,39251.0,0.61329898]
[1645887961070,0.0426768,39253.0,39251.0,0.66329898]
[1645887961268,0.0426768,39253.0,39251.0,0.71329898]
[1645887961468,0.0426768,39253.0,39251.0,1.01329898]
[1645887961670,0.003,39258.0,39251.0,1.01329898]
[1645887961868,0.003,39258.0,39252.0,0.3]
[1645887962068,0.003,39258.0,39253.0,0.377617]
[1645887962270,0.003,39258.0,39255.0,0.377617]
[1645887962469,0.003,39258.0,39257.0,0.56500497]
[1645887962874,0.02553,39266.0,39258.0,0.377617]
[1645887963070,0.02553,39266.0,39259.0,0.3]
[1645887963269,0.02553,39266.0,39258.0,0.377617]
[1645887963469,0.02553,39266.0,39257.0,0.18738797]
[1645887963672,0.4998,39267.0,39259.0,0.377617]
[1645887963872,0.1927,39269.0,39258.0,0.3]
[1645887964080,0.40428296,39270.0,39258.0,0.3]
[1645887964081,0.37875296,39270.0,39258.0,0.3]
[1645887964680,0.40428296,39270.0,39258.0,0.3]
[1645887965483,0.40428296,39270.0,39257.0,0.18738797]
[1645887967583,0.40428296,39270.0,39258.0,0.3]
[1645887967584,0.37875296,39270.0,39258.0,0.3]
[1645887967843,0.02553,39269.0,39257.0,0.18738797]
[1645887968239,0.3,39269.0,39257.0,0.18738797]
[1645887969038,0.02553,39268.0,39257.0,0.18738797]
[1645887969239,0.0637235,39265.0,39258.0,0.377617]
[1645887969842,0.0637235,39265.0,39260.0,0.377617]
[1645887970042,0.3,39269.0,39257.0,0.18728797]
[1645887970644,0.3,39269.0,39258.0,0.377617]
[1645887971476,0.301,39269.0,39258.0,0.377617]
[1645887971879,0.36471678,39269.0,39258.0,0.377617]
[1645887972276,0.36471678,39269.0,39258.0,0.37719814]
[1645887972977,0.06371678,39269.0,39263.0,0.22123128]
[1645887973580,0.06371678,39269.0,39264.0,0.377639]
[1645887973780,0.5635103,39272.0,39263.0,0.22123128]
[1645887973981,0.5635103,39272.0,39264.0,0.72948577]
[1645887973982,0.4998,39272.0,39264.0,0.72948577]
[1645887974179,0.00161315,39273.0,39264.0,0.442019]
[1645887974378,0.002,39274.0,39264.0,0.492019]
[1645887974578,0.002,39274.0,39264.0,0.8298146]
[1645887974779,0.00012558,39273.0,39271.0,0.18470284]
[1645887974980,0.00012558,39273.0,39272.0,0.377639]
[1645887975231,0.00012558,39273.0,39272.0,1.405549]
[1645887975631,0.4998,39283.0,39272.0,1.405549]
[1645887975632,0.4998,39283.0,39272.0,1.407549]
[1645887975834,0.4998,39283.0,39273.0,0.28767401]
[1645887976031,0.00129149,39280.0,39274.0,0.377639]